[Event "121st Swiss Championship 2022"]
[Site "Samnaun-Compatsch"]
[Date "2022.07.07"]
[Round "5.6"]
[White "Hakimifard, Ghazal"]
[Black "Schlegel, Igor"]
[Result "0-1"]
[ECO "B90"]
[WhiteElo "2296"]
[BlackElo "2194"]
[Annotator "RC"]
[PlyCount "130"]
[EventDate "2022.06.28"]
[EventType "swiss"]
[EventCountry "SUI"]
[SourceTitle "playchess.com"]
[Source "ChessBase"]
[SourceQuality "1"]
[TimeControl "40/5400+30:1800+30"]

1. e4 {[%emt 0:00:02]} c5 {[%emt 0:00:03]} 2. Nf3 {[%emt 0:00:05]} d6 {[%emt 0:00:03]} 3. d4 {[%emt 0:00:05]} cxd4 {[%emt 0:00:03]} 4. Nxd4 {[%emt 0:00:05]} Nf6 {[%emt 0:00:04]} 5. Nc3 {[%emt 0:00:05]} a6 {[%emt 0:00:04]} 6. h3 {[%emt 0:00:08]} g6 {[%emt 0:00:56]} 7. g4 {[%emt 0:00:13]} Bg7 {[%emt 0:00:28]} 8. Bg2 {[%emt 0:00:10]} O-O {[%emt 0:01:01]} 9. Be3 {[%emt 0:00:15]} Bd7 {[%emt 0:05:13]} 10. O-O {[%emt 0:01:14]} Nc6 {[%emt 0:00:19]} 11. Nde2 {[%emt 0:00:12]} Rc8 {[%emt 0:09:43]} 12. f4 {[%emt 0:00:30]} b5 {[%emt 0:21:50]} 13. a3 {[%emt 0:21:34]} Be6 {[%emt 0:21:46]} 14. Nd5 {[%emt 0:15:42]} Bxd5 {[%emt 0:06:22]} 15. exd5 {[%emt 0:00:14]} Na5 {[%emt 0:00:06]} 16. b3 {[%emt 0:02:46]} Qc7 {[%emt 0:04:06]} 17. Nd4 {[%emt 0:08:43]} Qc3 {[%emt 0:10:17]} 18. Bf2 {[%emt 0:00:31]} Rfe8 {[%emt 0:00:40]} 19. Re1 {[%emt 0:12:55]} Nd7 {[%emt 0:09:48]} 20. Ra2 {[%emt 0:05:03]} Qc7 {[%emt 0:03:45]} 21. Qd2 {[%emt 0:06:23]} Nb7 {[%emt 0:00:10]} 22. Nc6 {[%emt 0:03:57]} Nb8 {[%emt 0:00:29]} 23. a4 {[%emt 0:01:37]} Nxc6 {[%emt 0:01:59]} 24. dxc6 {[%emt 0:00:01]} Nc5 {[%emt 0:00:07]} 25. axb5 {[%emt 0:04:08]} axb5 {[%emt 0:00:01]} 26. Qb4 {[%emt 0:00:42]} Qb6 {[%emt 0:01:02]} 27. Ra5 {[%emt 0:04:23]} Rb8 {[%emt 0:00:47]} 28. Rd1 {[%emt 0:02:50]} Rec8 {[%emt 0:00:30]} 29. Re1 {[%emt 0:02:03]} e6 {[%emt 0:00:45]} 30. Rd1 {[%emt 0:00:19]} Bf8 {[%emt 0:00:26]} 31. c4 {[%emt 0:03:37]} bxc4 {[%emt 0:00:04]} 32. Qxb6 Rxb6 {[%emt 0:00:00]} 33. bxc4 {[%emt 0:00:04]} Rb4 {[%emt 0:00:31]} 34. Bxc5 {[%emt 0:03:21]} dxc5 {[%emt 0:00:01]} 35. Ra7 {[%emt 0:00:06]} Rxc4 {[%emt 0:00:43]} 36. c7 {[%emt 0:01:09]} Rd4 {[%emt 0:00:11]} 37. Rxd4 {[%emt 0:03:09]} cxd4 {[%emt 0:00:04]} 38. Bc6 {[%emt 0:00:21]} Bd6 {[%emt 0:00:46]} 39. Kf2 {[%emt 0:00:06]} Bxf4 {[%emt 0:00:30]} 40. Kf3 {[%emt 0:00:19]} Bxc7 {[%emt 0:04:14]} 41. Bd7 {[%emt 0:31:15]} Bb6 {[%emt 0:30:01]} 42. Rb7 {[%emt 0:00:00]} Rc7 {[%emt 0:00:00]} 43. Rxc7 {[%emt 0:00:00]} Bxc7 {[%emt 0:00:00]} 44. Ke4 {[%emt 0:00:00]} Bb6 {[%emt 0:00:00]} 45. g5 {[%emt 0:00:00]} Bd8 {[%emt 0:00:00]} 46. h4 {[%emt 0:00:00]} h6 {[%emt 0:00:00]} 47. h5 {[%emt 0:00:00]} gxh5 {[%emt 0:00:00]} 48. g6 {[%emt 0:00:00]} Bf6 {[%emt 0:00:00]} 49. Be8 {[%emt 0:00:00]} fxg6 {[%emt 0:00:00]} 50. Bxg6 {[%emt 0:00:00]} h4 {[%emt 0:00:00]} 51. Kf4 {[%emt 0:00:00]} Kf8 {[%emt 0:00:00]} 52. Bd3 {[%emt 0:00:00]} Ke7 {[%emt 0:00:00]} 53. Bf1 {[%emt 0:00:00]} Kd6 {[%emt 0:00:00]} 54. Ke4 {[%emt 0:00:00]} e5 {[%emt 0:02:28]} 55. Bh3 {[%emt 0:00:00]} Bg5 {[%emt 0:00:09]} 56. Kd3 {[%emt 0:00:00]} Kd5 {[%emt 0:00:33]} 57. Bg2+ {[%emt 0:00:00]} Ke6 {[%emt 0:00:04]} 58. Bh3+ {[%emt 0:00:00]} Kf6 {[%emt 0:00:04]} 59. Ke4 {[%emt 0:00:00]} Bf4 {[%emt 0:03:38]} 60. Bd7 {[%emt 0:00:00]} Kg5 {[%emt 0:02:05]} 61. Bc8 {[%emt 0:00:00]} h3 {[%emt 0:00:22]} 62. Bxh3 {[%emt 0:00:00]} Kh4 {[%emt 0:01:14]} 63. Be6 {[%emt 0:00:00]} h5 {[%emt 0:00:11]} 64. Bf7 {[%emt 0:00:00]} Kg4 {[%emt 0:00:05]} 65. Be6+ {[%emt 0:00:00]} Kg3 {[%emt 0:00:01]} 0-1

[Event "121st Swiss Championship 2022"]
[Site "Samnaun-Compatsch"]
[Date "2022.07.07"]
[Round "5.7"]
[White "Rohrer, Christophe"]
[Black "Angst, Oliver"]
[Result "1-0"]
[ECO "B94"]
[WhiteElo "2246"]
[BlackElo "2203"]
[Annotator "RC"]
[PlyCount "59"]
[EventDate "2022.06.28"]
[EventType "swiss"]
[EventCountry "SUI"]
[SourceTitle "playchess.com"]
[Source "ChessBase"]
[SourceQuality "1"]
[TimeControl "40/5400+30:1800+30"]

1. e4 {[%emt 0:00:04]} c5 {[%emt 0:00:05]} 2. Nf3 {[%emt 0:00:10]} d6 {[%emt 0:00:05]} 3. d4 {[%emt 0:00:06]} cxd4 {[%emt 0:00:04]} 4. Nxd4 {[%emt 0:00:08]} Nf6 {[%emt 0:00:04]} 5. Nc3 {[%emt 0:00:09]} a6 {[%emt 0:00:04]} 6. Bg5 {[%emt 0:00:16]} Nbd7 {[%emt 0:00:03]} 7. f4 {[%emt 0:00:15]} Qc7 {[%emt 0:00:09]} 8. Qf3 {[%emt 0:00:18]} b5 {[%emt 0:00:05]} 9. O-O-O {[%emt 0:01:39]} Bb7 {[%emt 0:00:07]} 10. Bd3 {[%emt 0:01:48]} Qb6 {[%emt 0:00:26]} 11. Nb3 {[%emt 0:04:55]} g6 {[%emt 0:01:09]} 12. Bh4 {[%emt 0:05:30]} Bg7 {[%emt 0:09:36]} 13. g4 {[%emt 0:00:34]} b4 {[%emt 0:04:34]} 14. Nd5 {[%emt 0:09:47]} Bxd5 {[%emt 0:03:48]} 15. exd5 {[%emt 0:00:10]} Nc5 {[%emt 0:01:27]} 16. Nxc5 {[%emt 0:09:00]} Qxc5 {[%emt 0:01:23]} 17. Bf2 {[%emt 0:00:34]} Qa5 {[%emt 0:10:07]} 18. Bc4 {[%emt 0:02:17]} Rc8 {[%emt 0:02:22]} 19. Bb3 {[%emt 0:01:35]} O-O {[%emt 0:17:19]} 20. h4 {[%emt 0:08:50]} Rc7 {[%emt 0:11:29]} 21. h5 {[%emt 0:04:05]} Rfc8 {[%emt 0:03:01]} 22. Rd2 {[%emt 0:02:25]} Rc4 {[%emt 0:06:59]} 23. hxg6 {[%emt 0:03:10]} Ne4 {[%emt 0:03:54]} 24. gxf7+ {[%emt 0:11:07]} Kf8 {[%emt 0:00:05]} 25. Bd4 {[%emt 0:05:13]} Bxd4 {[%emt 0:03:11]} 26. Rxd4 {[%emt 0:00:49]} Rxd4 {[%emt 0:00:25]} 27. Qh3 {[%emt 0:00:41]} Rc3 {[%emt 0:17:54]} 28. Qxh7 {[%emt 0:01:22]} Nf6 {[%emt 0:00:03]} 29. Qg6 {[%emt 0:00:14]} Rd1+ {[%emt 0:01:35]} 30. Kxd1 {[%emt 0:00:12]} 1-0

[Event "121st Swiss Championship 2022"]
[Site "Samnaun-Compatsch"]
[Date "2022.07.07"]
[Round "5.8"]
[White "Pogan, Nikolas"]
[Black "Gemelli, Romain"]
[Result "1-0"]
[ECO "A05"]
[WhiteElo "2226"]
[BlackElo "2045"]
[Annotator "RC"]
[PlyCount "59"]
[EventDate "2022.06.28"]
[EventType "swiss"]
[EventCountry "SUI"]
[SourceTitle "playchess.com"]
[Source "ChessBase"]
[SourceQuality "1"]
[TimeControl "40/5400+30:1800+30"]

1. Nf3 {[%emt 0:00:03]} Nf6 {[%emt 0:00:12]} 2. g3 {[%emt 0:00:20]} g6 {[%emt 0:00:11]} 3. Bg2 {[%emt 0:00:02]} Bg7 {[%emt 0:00:11]} 4. O-O {[%emt 0:00:03]} O-O {[%emt 0:00:14]} 5. a3 {[%emt 0:05:00]} d6 {[%emt 0:01:38]} 6. d3 {[%emt 0:01:16]} e5 {[%emt 0:01:19]} 7. Nc3 {[%emt 0:00:03]} c6 {[%emt 0:01:45]} 8. Bd2 {[%emt 0:02:07]} h6 {[%emt 0:06:44]} 9. h3 {[%emt 0:05:05]} a5 {[%emt 0:01:44]} 10. e4 {[%emt 0:06:41]} Na6 {[%emt 0:06:59]} 11. Nh2 {[%emt 0:02:55]} Bd7 {[%emt 0:04:29]} 12. Ng4 {[%emt 0:07:28]} Nxg4 {[%emt 0:04:20]} 13. hxg4 {[%emt 0:00:05]} Qc8 {[%emt 0:04:44]} 14. Na4 {[%emt 0:16:03]} Qd8 {[%emt 0:07:30]} 15. Be3 {[%emt 0:16:30]} b5 {[%emt 0:12:32]} 16. Nb6 {[%emt 0:00:24]} Rb8 {[%emt 0:00:09]} 17. Nxd7 {[%emt 0:00:04]} Qxd7 {[%emt 0:00:06]} 18. Bf3 {[%emt 0:12:33]} Nc7 {[%emt 0:12:27]} 19. Qd2 {[%emt 0:03:15]} Ne6 {[%emt 0:07:32]} 20. Qxa5 {[%emt 0:03:39]} c5 {[%emt 0:04:04]} 21. Qd2 {[%emt 0:00:27]} g5 {[%emt 0:10:24]} 22. c3 {[%emt 0:00:12]} Rfc8 {[%emt 0:04:53]} 23. Bd1 {[%emt 0:03:14]} d5 {[%emt 0:02:43]} 24. exd5 {[%emt 0:00:09]} Qxd5 {[%emt 0:00:07]} 25. Qe2 {[%emt 0:00:18]} c4 {[%emt 0:00:56]} 26. Bc2 {[%emt 0:00:43]} Bf8 {[%emt 0:02:41]} 27. Rad1 {[%emt 0:00:11]} Bc5 {[%emt 0:01:19]} 28. dxc4 {[%emt 0:02:28]} Qxc4 {[%emt 0:00:04]} 29. Bd3 {[%emt 0:01:10]} Qa4 {[%emt 0:00:36]} 30. Bc1 {[%emt 0:00:50]} 1-0

[Event "121st Swiss Championship 2022"]
[Site "Samnaun-Compatsch"]
[Date "2022.07.07"]
[Round "5.9"]
[White "Buehler, Michael"]
[Black "Georgescu, Lena"]
[Result "1/2-1/2"]
[ECO "D31"]
[WhiteElo "2064"]
[BlackElo "2279"]
[Annotator "RC"]
[PlyCount "128"]
[EventDate "2022.06.28"]
[EventType "swiss"]
[EventCountry "SUI"]
[SourceTitle "playchess.com"]
[Source "ChessBase"]
[SourceQuality "1"]
[TimeControl "40/5400+30:1800+30"]

1. d4 {[%emt 0:00:07]} d5 {[%emt 0:00:04]} 2. c4 {[%emt 0:00:15]} e6 {[%emt 0:00:03]} 3. Nc3 {[%emt 0:00:38]} a6 {[%emt 0:00:04]} 4. cxd5 {[%emt 0:06:56]} exd5 {[%emt 0:00:11]} 5. Nf3 {[%emt 0:00:17]} c6 {[%emt 0:00:03]} 6. Bf4 {[%emt 0:01:17]} Bd6 {[%emt 0:00:15]} 7. Bxd6 {[%emt 0:00:59]} Qxd6 {[%emt 0:00:08]} 8. e3 {[%emt 0:00:54]} Ne7 {[%emt 0:00:08]} 9. Bd3 {[%emt 0:01:57]} O-O {[%emt 0:05:32]} 10. Qc2 {[%emt 0:04:38]} g6 {[%emt 0:03:32]} 11. h4 {[%emt 0:07:19]} h5 {[%emt 0:26:40]} 12. O-O-O {[%emt 0:04:07]} Nd7 {[%emt 0:00:06]} 13. Qd2 {[%emt 0:13:35]} Nf6 {[%emt 0:06:24]} 14. Ng5 {[%emt 0:09:55]} c5 {[%emt 0:04:41]} 15. dxc5 {[%emt 0:04:43]} Qxc5 {[%emt 0:00:01]} 16. Kb1 {[%emt 0:00:12]} Bd7 {[%emt 0:10:28]} 17. Nf3 {[%emt 0:05:17]} b5 {[%emt 0:03:24]} 18. e4 {[%emt 0:12:38]} Kg7 {[%emt 0:10:30]} 19. Nxd5 {[%emt 0:03:24]} Nexd5 {[%emt 0:00:16]} 20. exd5 {[%emt 0:00:06]} Qxd5 {[%emt 0:01:39]} 21. Qf4 {[%emt 0:05:50]} Be6 {[%emt 0:03:58]} 22. b3 {[%emt 0:00:08]} Qc5 {[%emt 0:02:24]} 23. Qd4 {[%emt 0:03:09]} Qxd4 {[%emt 0:03:18]} 24. Nxd4 {[%emt 0:00:09]} Bd5 {[%emt 0:00:01]} 25. f3 {[%emt 0:00:14]} Rad8 {[%emt 0:02:06]} 26. Ne2 {[%emt 0:01:03]} Bb7 {[%emt 0:01:22]} 27. Bc2 {[%emt 0:03:29]} Rfe8 {[%emt 0:06:29]} 28. Nf4 {[%emt 0:00:28]} Nd5 {[%emt 0:03:25]} 29. Nxd5 {[%emt 0:00:30]} Bxd5 {[%emt 0:00:01]} 30. Rhe1 {[%emt 0:01:56]} Rxe1 {[%emt 0:00:27]} 31. Rxe1 {[%emt 0:00:04]} Kf6 {[%emt 0:00:49]} 32. Kb2 {[%emt 0:05:15]} Bc6 {[%emt 0:02:12]} 33. Kc3 {[%emt 0:02:18]} Rc8 {[%emt 0:00:27]} 34. Kd2 {[%emt 0:00:22]} a5 {[%emt 0:02:16]} 35. Be4 {[%emt 0:00:35]} Rd8+ {[%emt 0:00:29]} 36. Ke3 {[%emt 0:01:33]} Bxe4 {[%emt 0:01:12]} 37. fxe4 {[%emt 0:00:01]} Rc8 {[%emt 0:00:23]} 38. Rf1+ {[%emt 0:00:49]} Ke6 {[%emt 0:00:47]} 39. Rf2 {[%emt 0:00:28]} b4 {[%emt 0:02:12]} 40. Rd2 {[%emt 0:00:54]} Rc5 {[%emt 0:00:59]} 41. Kd4 {[%emt 0:23:31]} Rc1 {[%emt 0:14:53]} 42. Ke3 {[%emt 0:02:09]} Ra1 {[%emt 0:04:25]} 43. Rc2 {[%emt 0:01:17]} Re1+ {[%emt 0:09:02]} 44. Kf4 {[%emt 0:01:07]} Rg1 {[%emt 0:01:27]} 45. Rc6+ {[%emt 0:01:34]} Ke7 {[%emt 0:01:02]} 46. Rc2 {[%emt 0:00:02]} Rh1 {[%emt 0:00:30]} 47. Rc5 {[%emt 0:01:03]} Rxh4+ {[%emt 0:00:59]} 48. Kf3 {[%emt 0:00:04]} Rh1 {[%emt 0:00:25]} 49. Rxa5 {[%emt 0:00:07]} Rf1+ {[%emt 0:00:21]} 50. Ke3 {[%emt 0:02:06]} Rg1 {[%emt 0:00:10]} 51. Kf3 {[%emt 0:00:27]} Ra1 {[%emt 0:00:12]} 52. Rb5 {[%emt 0:00:17]} Rxa2 {[%emt 0:00:04]} 53. Rxb4 {[%emt 0:00:03]} Rb2 {[%emt 0:00:18]} 54. Rb6 {[%emt 0:01:06]} g5 {[%emt 0:00:35]} 55. g3 {[%emt 0:00:36]} Rc2 {[%emt 0:00:46]} 56. Rh6 {[%emt 0:02:23]} Rc3+ {[%emt 0:01:51]} 57. Kf2 {[%emt 0:00:40]} Rxb3 {[%emt 0:00:09]} 58. Rxh5 {[%emt 0:00:04]} Kf6 {[%emt 0:00:05]} 59. Rh8 {[%emt 0:00:39]} Ke5 {[%emt 0:00:44]} 60. Re8+ {[%emt 0:00:32]} Kd4 {[%emt 0:00:37]} 61. Re7 {[%emt 0:00:33]} f6 {[%emt 0:01:03]} 62. Re6 {[%emt 0:00:16]} Ra3 {[%emt 0:00:29]} 63. g4 {[%emt 0:00:55]} Ra2+ {[%emt 0:00:38]} 64. Kf3 {[%emt 0:00:08]} Ra3+ {[%emt 0:00:04]} 1/2-1/2

[Event "121st Swiss Championship 2022"]
[Site "Samnaun-Compatsch"]
[Date "2022.07.07"]
[Round "5.10"]
[White "Loeffler, Markus"]
[Black "Carre, Sylvain"]
[Result "1-0"]
[ECO "C42"]
[WhiteElo "2278"]
[BlackElo "2113"]
[Annotator "RC"]
[PlyCount "79"]
[EventDate "2022.06.28"]
[EventType "swiss"]
[EventCountry "SUI"]
[SourceTitle "playchess.com"]
[Source "ChessBase"]
[SourceQuality "1"]
[TimeControl "40/5400+30:1800+30"]

1. e4 {[%emt 0:00:03]} e5 {[%emt 0:00:14]} 2. Nf3 {[%emt 0:00:02]} Nf6 {[%emt 0:00:15]} 3. Nxe5 {[%emt 0:00:02]} d6 {[%emt 0:00:14]} 4. Nf3 {[%emt 0:00:02]} Nxe4 {[%emt 0:00:08]} 5. Nc3 {[%emt 0:00:05]} Nxc3 {[%emt 0:00:07]} 6. dxc3 {[%emt 0:00:05]} Be7 {[%emt 0:00:06]} 7. Be3 {[%emt 0:00:10]} Nc6 {[%emt 0:01:11]} 8. Qd2 {[%emt 0:00:08]} Be6 {[%emt 0:00:37]} 9. O-O-O {[%emt 0:01:11]} Qd7 {[%emt 0:02:24]} 10. Kb1 {[%emt 0:00:05]} a6 {[%emt 0:00:06]} 11. h3 {[%emt 0:02:50]} h6 {[%emt 0:05:35]} 12. b3 {[%emt 0:00:45]} Bf6 {[%emt 0:15:47]} 13. g4 {[%emt 0:00:21]} O-O-O {[%emt 0:00:50]} 14. Bg2 {[%emt 0:00:31]} g5 {[%emt 0:04:12]} 15. Nd4 {[%emt 0:00:28]} Nxd4 {[%emt 0:06:27]} 16. cxd4 {[%emt 0:00:11]} d5 {[%emt 0:02:48]} 17. f4 {[%emt 0:00:15]} gxf4 {[%emt 0:00:57]} 18. Bxf4 {[%emt 0:00:02]} h5 {[%emt 0:04:36]} 19. g5 {[%emt 0:00:19]} Be7 {[%emt 0:03:43]} 20. Rde1 {[%emt 0:04:52]} Bd6 {[%emt 0:03:14]} 21. h4 {[%emt 0:06:01]} Qb5 {[%emt 0:14:18]} 22. Bxd6 {[%emt 0:08:17]} Rxd6 {[%emt 0:00:26]} 23. Rhf1 {[%emt 0:00:01]} Qd7 {[%emt 0:07:57]} 24. Qf4 {[%emt 0:16:12]} a5 {[%emt 0:00:53]} 25. a4 {[%emt 0:07:35]} Rb6 {[%emt 0:01:21]} 26. Ka2 {[%emt 0:06:07]} Rd8 {[%emt 0:00:20]} 27. Qd2 {[%emt 0:05:28]} Rb4 {[%emt 0:00:37]} 28. Qc3 {[%emt 0:05:08]} Kb8 {[%emt 0:07:16]} 29. Rf6 {[%emt 0:09:27]} Bf5 {[%emt 0:03:40]} 30. Re5 {[%emt 0:02:33]} Bxc2 {[%emt 0:03:40]} 31. Qxc2 {[%emt 0:15:27]} Rxd4 {[%emt 0:00:21]} 32. Qf2 {[%emt 0:00:19]} Qg4 {[%emt 0:05:29]} 33. Bf3 {[%emt 0:03:07]} Qxh4 {[%emt 0:01:08]} 34. Qxh4 {[%emt 0:00:02]} Rxh4 {[%emt 0:00:06]} 35. Rxf7 {[%emt 0:01:26]} Rh2+ {[%emt 0:00:24]} 36. Ka3 {[%emt 0:02:59]} Rg8 {[%emt 0:04:01]} 37. Rxd5 {[%emt 0:01:05]} h4 {[%emt 0:00:13]} 38. Rb5 {[%emt 0:02:07]} b6 {[%emt 0:00:53]} 39. Rbf5 {[%emt 0:00:02]} Rd2 {[%emt 0:00:59]} 40. g6 {[%emt 0:01:18]} 1-0

[Event "121st Swiss Championship 2022"]
[Site "Samnaun-Compatsch"]
[Date "2022.07.07"]
[Round "5.11"]
[White "Sedina, Yelena"]
[Black "Udipi, Kala Kishan"]
[Result "1/2-1/2"]
[ECO "B54"]
[WhiteElo "2215"]
[BlackElo "2057"]
[Annotator "RC"]
[PlyCount "83"]
[EventDate "2022.06.28"]
[EventType "swiss"]
[EventCountry "SUI"]
[SourceTitle "playchess.com"]
[Source "ChessBase"]
[SourceQuality "1"]
[TimeControl "40/5400+30:1800+30"]

1. e4 {[%emt 0:00:08]} c5 {[%emt 0:00:12]} 2. Nf3 {[%emt 0:00:21]} e6 {[%emt 0:00:17]} 3. c4 {[%emt 0:02:44]} Nc6 {[%emt 0:00:31]} 4. d4 {[%emt 0:00:46]} cxd4 {[%emt 0:00:29]} 5. Nxd4 {[%emt 0:00:08]} a6 {[%emt 0:06:42]} 6. Nc3 {[%emt 0:02:11]} d6 {[%emt 0:05:19]} 7. Be3 {[%emt 0:02:19]} Nf6 {[%emt 0:00:34]} 8. Be2 {[%emt 0:00:32]} Be7 {[%emt 0:00:13]} 9. O-O {[%emt 0:01:26]} O-O {[%emt 0:01:21]} 10. f4 {[%emt 0:18:50]} Qc7 {[%emt 0:06:54]} 11. Rc1 {[%emt 0:01:12]} Rb8 {[%emt 0:02:09]} 12. Kh1 {[%emt 0:10:38]} Rd8 {[%emt 0:10:21]} 13. Nd5 {[%emt 0:18:34]} Qd7 {[%emt 0:11:19]} 14. Nxe7+ {[%emt 0:07:54]} Qxe7 {[%emt 0:03:20]} 15. Qc2 {[%emt 0:00:52]} Nxd4 {[%emt 0:04:45]} 16. Bxd4 {[%emt 0:00:02]} e5 {[%emt 0:02:48]} 17. Bb6 {[%emt 0:02:14]} Re8 {[%emt 0:00:52]} 18. f5 {[%emt 0:10:51]} Bd7 {[%emt 0:14:22]} 19. b4 {[%emt 0:00:12]} Bc6 {[%emt 0:01:03]} 20. Bf3 {[%emt 0:00:26]} Nd7 {[%emt 0:05:13]} 21. Be3 {[%emt 0:00:10]} b6 {[%emt 0:04:05]} 22. Rfd1 {[%emt 0:02:45]} Red8 {[%emt 0:00:38]} 23. Qd2 {[%emt 0:05:00]} Nf8 {[%emt 0:01:34]} 24. Bg5 {[%emt 0:03:26]} f6 {[%emt 0:00:15]} 25. Be3 {[%emt 0:00:08]} Qb7 {[%emt 0:01:30]} 26. Qc2 {[%emt 0:00:04]} Kh8 {[%emt 0:03:11]} 27. a4 {[%emt 0:01:00]} Rbc8 {[%emt 0:01:22]} 28. Ra1 {[%emt 0:01:21]} b5 {[%emt 0:01:03]} 29. axb5 {[%emt 0:03:40]} Bxb5 {[%emt 0:00:22]} 30. Be2 {[%emt 0:01:10]} Bc6 {[%emt 0:03:35]} 31. Bd3 {[%emt 0:00:20]} d5 {[%emt 0:02:23]} 32. cxd5 {[%emt 0:01:18]} Bxd5 {[%emt 0:04:24]} 33. Bc5 {[%emt 0:02:59]} Bc6 {[%emt 0:03:07]} 34. Bxa6 {[%emt 0:00:06]} Bxe4 {[%emt 0:00:23]} 35. Qe2 {[%emt 0:01:07]} Bxg2+ {[%emt 0:00:30]} 36. Kg1 {[%emt 0:00:30]} Bf3 {[%emt 0:00:47]} 37. Bxb7 {[%emt 0:00:56]} Bxe2 {[%emt 0:00:08]} 38. Bxc8 {[%emt 0:00:26]} Bxd1 {[%emt 0:00:12]} 39. Ba6 {[%emt 0:00:40]} Bc2 {[%emt 0:00:58]} 40. Rf1 {[%emt 0:00:23]} Nd7 {[%emt 0:00:41]} 41. Be3 {[%emt 0:30:31]} e4 {[%emt 0:02:35]} 42. Rc1 {[%emt 0:00:00]} 1/2-1/2

[Event "121st Swiss Championship 2022"]
[Site "Samnaun-Compatsch"]
[Date "2022.07.08"]
[Round "6.1"]
[White "Pavlovic, Milos"]
[Black "Rohrer, Christophe"]
[Result "1/2-1/2"]
[ECO "E05"]
[WhiteElo "2461"]
[BlackElo "2246"]
[Annotator "TA"]
[PlyCount "71"]
[EventDate "2022.06.28"]
[EventType "swiss"]
[EventCountry "SUI"]
[SourceTitle "playchess.com"]
[Source "ChessBase"]
[SourceQuality "1"]
[TimeControl "40/5400+30:1800+30"]

{[%evp 27,71,0,15,14,17,18,18,9,15,18,10,9,60,63,58,59,64,23,51,40,52,35,30,31,25,33,34,31,47,50,37,22,13,0,0,0,0,0,0,0,0,0,0,0,0,0]} 1. Nf3 {[%emt 0:00:02]} Nf6 {[%emt 0:00:13]} 2. g3 {[%emt 0:00:23]} d5 {[%emt 0:00:17]} 3. Bg2 {[%emt 0:00:04]} e6 {[%emt 0:00:16]} 4. O-O {[%emt 0:00:08]} Be7 {[%emt 0:00:12]} 5. d4 {[%emt 0:00:34]} O-O {[%emt 0:00:25]} 6. c4 {[%emt 0:00:05]} dxc4 {[%emt 0:00:22]} 7. Qc2 {[%emt 0:00:06]} a6 {[%emt 0:00:40]} 8. Qxc4 {[%emt 0:01:26]} b5 {[%emt 0:00:19]} 9. Qc2 {[%emt 0:00:05]} Bb7 {[%emt 0:00:26]} 10. Bg5 {[%emt 0:00:07]} Nbd7 {[%emt 0:02:10]} 11. Bxf6 {[%emt 0:00:07]} Nxf6 {[%emt 0:00:46]} 12. Nbd2 {[%emt 0:00:07]} Rc8 {[%emt 0:09:20]} 13. Nb3 {[%emt 0:00:06]} c5 {[%emt 0:08:58]} 14. dxc5 {[%emt 0:00:08]} Bd5 {[%emt 0:03:22]} 15. Rfd1 {[%emt 0:12:43]} Bxb3 {[%emt 0:05:06][%mdl 64] [#] Remove Defender} (15... a5 {is interesting.} 16. a4 bxa4 17. Rxa4 Qb6) 16. axb3 {[%emt 0:42:29]} (16. Qxb3 {with more complications.} Qc7 17. e3 Bxc5 18. a4) 16... Rxc5 {[%emt 0:03:08]} 17. Qxc5 {[%emt 0:00:07]} Bxc5 {[%emt 0:13:00]} 18. Rxd8 {[%emt 0:00:07]} Rxd8 {[%emt 0:00:09]} 19. Ne5 {[%emt 0:00:37]} Rd6 {[%emt 0:17:27]} (19... Bd4 $11 20. Nd3 e5) 20. Bb7 $14 {[%emt 0:09:41]} Rb6 {[%emt 0:08:25]} 21. Bxa6 {[%emt 0:11:33]} Bd6 {[%emt 0:00:28]} 22. Nf3 {[%emt 0:03:18]} Ne8 {[%emt 0:01:51]} 23. Bc8 {[%emt 0:00:47]} Nc7 {[%emt 0:01:55]} 24. Bd7 {[%emt 0:00:03]} Kf8 {[%emt 0:01:02] [#] Hoping for ...Ke7.} 25. Rc1 {[%emt 0:00:06]} Ke7 {[%emt 0:00:58]} 26. Bc6 {[%emt 0:00:06]} Na6 {[%emt 0:01:47]} 27. Be4 {[%emt 0:04:14]} f5 {[%emt 0:01:40]} 28. Bb1 {[%emt 0:04:18]} Nc5 {[%emt 0:01:52]} 29. Nd4 {[%emt 0:00:08]} g6 {[%emt 0:00:42] The position is equal.} 30. b4 {[%emt 0:02:32]} Na6 {[%emt 0:02:40]} 31. Rc6 {[%emt 0:00:19]} Rxc6 {[%emt 0:00:10]} 32. Nxc6+ {[%emt 0:00:06]} Kd7 {[%emt 0:00:08]} 33. Nd4 {[%emt 0:00:05]} Be5 {[%emt 0:00:32]} 34. Bd3 {[%emt 0:01:22]} Nxb4 {[%emt 0:01:34]} 35. Bxb5+ {[%emt 0:00:05]} Kd6 {[%emt 0:00:28]} 36. Nf3 {[%emt 0:00:34] Weighted Error Value: White=0.05 (flawless) /Black=0.07 (flawless)} 1/2-1/2

[Event "121st Swiss Championship 2022"]
[Site "Samnaun-Compatsch"]
[Date "2022.07.08"]
[Round "6.2"]
[White "Baenziger, Fabian"]
[Black "Pogan, Nikolas"]
[Result "1-0"]
[ECO "D11"]
[WhiteElo "2451"]
[BlackElo "2226"]
[Annotator "TA"]
[PlyCount "53"]
[EventDate "2022.06.28"]
[EventType "swiss"]
[EventCountry "SUI"]
[SourceTitle "playchess.com"]
[Source "ChessBase"]
[SourceQuality "1"]
[TimeControl "40/5400+30:1800+30"]

{[%evp 9,53,27,35,32,46,36,43,19,23,17,20,9,12,12,17,-9,0,0,0,0,25,27,29,21,72,86,93,81,110,103,100,98,112,115,188,177,200,197,179,187,494,324,542,509,29984,29985]} 1. d4 {[%emt 0:00:05]} d5 {[%emt 0:00:36]} 2. c4 {[%emt 0:00:16]} c6 {[%emt 0:00:05]} 3. Nf3 {[%emt 0:00:15]} Nf6 {[%emt 0:00:05]} 4. e3 {[%emt 0:00:59]} a6 {[%emt 0:01:12]} 5. Bd3 {[%emt 0:06:17]} g6 {[%emt 0:09:19]} 6. O-O {[%emt 0:02:19] D11: Slav Defence: 3 Nf3 sidelines and 3...Nf6 4 e3 Bg4.} Bf5 {[%emt 0:05:24]} 7. Nc3 {[%emt 0:02:16]} e6 {[%emt 0:03:39]} 8. b3 {[%emt 0:05:27] White is slightly better.} Bb4 {[%emt 0:26:51]} 9. Bb2 {[%emt 0:07:13]} Nbd7 {[%emt 0:01:20] [#]} 10. Rc1 $146 {[%emt 0:08:57]} ({Predecessor:} 10. Ne2 Bd6 11. Ne5 Qc7 12. f4 Bxd3 13. Qxd3 Ne4 14. Nxd7 Qxd7 15. Nc3 f5 16. Nxe4 fxe4 {0-1 (39) Li,D (2479)-Van Foreest,J (2616) Tarvisio 2017}) 10... O-O {[%emt 0:04:20]} 11. Qe2 {[%emt 0:05:52]} Re8 {[%emt 0:02:50]} 12. Nd2 {[%emt 0:07:10]} Bxd3 {[%emt 0:02:40]} 13. Qxd3 {[%emt 0:00:16]} e5 {[%emt 0:06:16]} 14. cxd5 {[%emt 0:00:58]} Bxc3 {[%emt 0:05:38]} 15. Qxc3 {[%emt 0:02:55]} Nxd5 {[%emt 0:00:11]} 16. Qc2 {[%emt 0:03:08]} Qe7 {[%emt 0:05:16]} (16... exd4 $11 17. Bxd4 Nb4) 17. dxe5 $16 {[%emt 0:01:24]} Nxe5 {[%emt 0:00:23]} 18. Nc4 {[%emt 0:06:05]} f6 {[%emt 0:01:44]} 19. Nxe5 {[%emt 0:12:20]} fxe5 {[%emt 0:00:06]} 20. e4 {[%emt 0:00:24]} Nf4 {[%emt 0:02:55]} 21. g3 $36 {[%emt 0:00:18][%cal Bg2g3,Bg3f4,Bf4f5][%mdl 2080] White is on the roll.} Qg5 {[%emt 0:03:16]} (21... Nh3+ $16 {keeps fighting.} 22. Kg2 Ng5) 22. Kh1 $18 {[%emt 0:02:44]} Qh5 {[%emt 0:09:26] [#] ( -> ...Qf3+)} 23. f3 $1 {[%emt 0:00:12][%cal Bf2f3,Bf3f4][%mdl 32]} ({Weaker is} 23. gxf4 Qf3+ 24. Kg1 Qg4+ 25. Kh1 Qf3+ 26. Kg1 Qg4+ 27. Kh1 Qf3+ $11) 23... Ne6 {[%emt 0:00:09] [#]} 24. f4 $1 {[%emt 0:02:48]} ({Resist} 24. Qc3 $6 Rad8 $16) 24... exf4 $2 {[%emt 0:00:33]} (24... Nd4 25. Qc4+ Kh8) 25. gxf4 {[%emt 0:00:06]} Rad8 $2 {[%emt 0:03:56]} (25... Qc5 26. Qxc5 Nxc5) 26. f5 {[%emt 0:03:54]} Ng5 {[%emt 0:01:59]} (26... Qg4 $18 27. fxe6 Rxe6) 27. Qc3 {[%emt 0:02:45] Weighted Error Value: White=0.15 (very precise) /Black=0.73} 1-0